Cogmind - Beta 16 @@@ ROGUE MODE // 2025.11.02 @ 10:09:07 Player: C0-2MO Result: Destroyed by TU-E6T(R) with Subdweller Machine Gun Performance ------------- Evolutions (0) 0 Regions Visited (2) 400 Robots Destroyed (20) 100 Value Destroyed (390) 390 Prototype IDs (2) 40 Alien Tech Used (0) 0 Bonus (0) 0 TOTAL SCORE: 930 Bonus ------- None Cogmind --------- Core Integrity 0/250 Matter 133/300 Energy 76/100 System Corruption 0% Temperature Cool (0) Movement Core (100) Ox1 Location -10/Subcaves Parts ------- > --- POWER (1) -------- (None) > --- PROPULSION (2) --- (None) > --- UTILITY (2) ------ Structural Scanner ECM Suite > --- WEAPON (2) ------- Small Laser > --- INVENTORY (5) ---- Wheel Compact Wheel High-capacity Storage Unit Mining Laser Peak State ------------ > --- POWER ------------ (None) > --- PROPULSION ------- Light Treads Wheel > --- UTILITY ---------- Small Storage Unit Seismic Detector > --- WEAPON ----------- Assault Rifle Assault Rifle > --- INVENTORY -------- Light Treads Wheel [Rating: 6] Favorites ----------- Power None Propulsion Light Treads Treads Light Treads Wheel Wheel Flight Unit Flight Unit Utility Small Storage Unit Device Seismic Detector Storage Small Storage Unit Weapon Assault Rifle Energy Gun Small Laser Ballistic Gun Assault Rifle Ballistic Cannon Light Cannon Special Weapon Mining Laser Build | -11 -10 -10 ------- Run | Yrd Mat Sub Slots Evolved . | . . . Power . | . . . Propulsion . | . . . Utility . | . . . Weapon . | . . . Parts Attached 15 | 6 8 1 Power . | . . . Engine . | . . . Core . | . . . Reactor . | . . . Propulsion 5 | 2 3 . Treads 2 | 1 1 . Leg . | . . . Wheel 1 | 1 . . Hover . | . . . Flight 2 | . 2 . Utility 4 | 2 2 . Device 3 | 1 2 . Storage 1 | 1 . . Processor . | . . . Hackware . | . . . Protection . | . . . Artifact . | . . . Weapon 6 | 2 3 1 Energy Gun 1 | . . 1 Energy Cannon . | . . . Ballistic Gun 2 | 2 . . Ballistic Cannon 2 | . 2 . Launcher . | . . . Special Weapon 1 | . 1 . Impact Weapon . | . . . Slashing Weapon . | . . . Piercing Weapon . | . . . Special Melee Weapon . | . . . Unidentified Prototypes . | . . . Parts Lost 5 | . 1 4 Power . | . . . Propulsion 2 | . . 2 Utility . | . . . Weapon 3 | . 1 2 Highest Loss Streak 4 | . 1 4 To Critical Strikes 1 | . . 1 Average Backups 5 | 1 6 4 Power . | . . . Propulsion 3 | 1 3 2 Utility . | . 1 1 Weapon 1 | . 1 1 Tool/Special . | . . . Unused Backups 8 | . 5 3 Power 1 | . 1 . Propulsion 4 | . 2 2 Utility 2 | . 1 1 Weapon 1 | . 1 . Tool/Special . | . . . Average Slot Usage (%) 76 | . 77 66 Treads 9 | . 9 9 Wheel 8 | . 9 6 Flight 8 | . 9 . Device 16 | . 14 28 Storage 7 | . 7 . Ballistic Gun 12 | . 13 . Ballistic Cannon 11 | . 10 18 Peak Build Rating 6 | 6 6 6 Average Rating 5 | 4 5 4 On Entrance 4 | . 6 6 Avg Prop Armor Cover (%) 13 | 16 13 12 Naked Turns . | . . . Heaviest Build 10 | 10 10 9 Greatest Support 10 | 10 10 10 Greatest Overweight (x) 1 | . . 1 Average Overweight (x) . | . . . Largest Inventory Capacity 8 | 8 8 5 Average Capacity 6 | 6 6 5 Most Carried 8 | 3 8 5 Average Carried 5 | 1 6 4 Final Capacity 8 | 8 5 5 Final Carried 5 | 3 5 4 Class Distribution -------------------- 82% | Mutant 17% | Infiltrator-Mutant Dominant Class ---------------- Mutant | -10/Materials Infiltrator-Mutant | -10/Subcaves Resources | -11 -10 -10 ----------- Run | Yrd Mat Sub Matter Collected 633 | 278 355 . Remotely . | . . . Salvage Created 539 | 86 453 . Parts 37 | 7 29 1 Haulers Intercepted 2 | . 2 . Recyclers Shooed 1 | 1 . . Parts Field Recycled . | . . . Retrieved Matter . | . . . Parts Self-Destructed 3 | . . 3 Prevented . | . . . Parts Restored . | . . . Kills | -11 -10 -10 ------- Run | Yrd Mat Sub Combat Hostiles Destroyed 14 | . 13 1 Guns 8 | . 8 . Cannons 6 | . 5 1 Classes Destroyed 7 | 2 4 1 Tunneler 1 | 1 . . Hauler 2 | . 2 . Recycler 2 | 1 1 . Watcher 1 | . 1 . Swarmer 6 | . 6 . Grunt 7 | . 7 . Subdweller 1 | . . 1 Best Kill Streak 4 | 2 4 1 Combat Bots Only 3 | . 3 1 Max Kills in Single Turn 1 | 1 1 1 Gunslinging . | . . . Exploded . | . . . Melee . | . . . Uniques/NPCs Destroyed . | . . . Combat | -11 -10 -10 -------- Run | Yrd Mat Sub Hostile Shots Fired 92 | . 51 41 Missed 29 | . 18 11 Hits 63 | . 33 30 Projectile 63 | . 33 30 Critical Strikes 3 | . 2 1 Damage Taken 990 | . 381 609 Core 250 | . 68 182 Absorbed by Shields . | . . . Core Remaining (%) 100 | 100 . . Volleys Fired 94 | 3 64 27 Largest 2 | 2 2 2 Hottest 100 | 40 100 60 Shots Fired 143 | 6 103 34 Gun 82 | 6 64 12 Cannon 60 | . 38 22 Launcher . | . . . Special 1 | . 1 . Kinetic 130 | 6 102 22 Thermal 13 | . 1 12 Explosive . | . . . Electromagnetic . | . . . Robot Hit Streak 8 | 5 8 7 Robot Miss Streak 4 | . 4 1 Penetration Max . | . . . Secondary Targets . | . . . Shots Hit Robots 96 | 5 63 28 Core Hits 29 | 3 22 4 Critical Kills 1 | . 1 . Critical Parts Destroyed 1 | . 1 . Critical Strikes 5 | . 4 1 Destroy 2 | . 2 . Blast 3 | . 2 1 Melee Attacks . | . . . Impact . | . . . Slashing . | . . . Piercing . | . . . Sneak Attacks . | . . . Combat Hostiles . | . . . Follow-up Attacks . | . . . Damage Inflicted 1431 | 61 968 402 Guns 734 | 61 556 117 Cannons 696 | . 411 285 Explosions . | . . . Melee . | . . . Ramming 1 | . 1 . Kinetic 1313 | 61 967 285 Thermal 117 | . . 117 Explosive . | . . . Electromagnetic . | . . . Impact . | . . . Slashing . | . . . Piercing . | . . . Highest Corruption . | . . . Average Corruption . | . . . Corruption Purged . | . . . Corruption Blocked . | . . . Overload Shots . | . . . Overflow Damage . | . . . Projectiles . | . . . Explosions . | . . . Melee . | . . . Knockbacks 10 | . 5 5 Impact . | . . . Kinetic 9 | . 5 4 Secondary 1 | . . 1 Self-Inflicted Damage . | . . . Shots . | . . . Rammed 1 | . 1 . Targets Rammed 1 | . 1 . Kicked . | . . . Crushed . | . . . Highest Temperature 15 | . 15 . Average Temperature 4 | . 4 . Received Heat Transfer 258 | . 192 66 Siege Activations . | . . . Martial Activations . | . . . Shielding Activations . | . . . Robots Disrupted . | . . . Combat Hostiles . | . . . Robots Corrupted . | . . . Combat Hostiles . | . . . Parts Fried . | . . . Impact Corruptions . | . . . Robots Melted . | . . . Combat Hostiles . | . . . Parts Melted . | . . . Heat Transferred 250 | . . 250 Parts Sabotaged . | . . . Parts Stolen . | . . . Parts Stripped . | . . . Power Chain Reactions . | . . . Alert | -11 -10 -10 ------- Run | Yrd Mat Sub Maximum Alert Level 1 | . 1 . Low Security (%) 88 | 100 87 . Level 1 11 | . 12 . Level 2 . | . . . Level 3 . | . . . Level 4 . | . . . Level 5 . | . . . High Security . | . . . Max Security . | . . . Peak Influence 244 | 5 244 . Initial 3 | . 3 . Average 107 | 2 114 . Influence Increases 620 | 10 610 . Destroy 0b10 Robot/C 260 | . 260 . Destroy 0b10 Robot/NC 30 | 10 20 . Destroy Leader 46 | . 46 . Successful Hack 57 | . 57 . Select Force Hacks 60 | . 60 . Destroy Structure 2 | . 2 . Lose Combat Pursuer 165 | . 165 . Influence Decreases 577 | 5 377 195 Entered New Map 117 | . 2 115 Time Decay 400 | 5 355 40 Lost Part 50 | . 10 40 Lost Ally 10 | . 10 . Squads Dispatched 3 | . 3 . Investigation 3 | . 3 . Extermination . | . . . Reinforcement . | . . . Assault . | . . . Garrison . | . . . Intercept . | . . . Searches Triggered . | . . . Construction Impeded . | . . . Haulers Reinforced . | . . . Active Scanning Responses . | . . . Cargo Convoy Interrupts . | . . . Stealth | -11 -10 -10 --------- Run | Yrd Mat Sub Distress Signals . | . . . Communications Jammed . | . . . Distress Signals . | . . . Times Spotted 30 | . 28 2 Peak Tracking Total 4 | . 4 2 Tactical Retreats 6 | . 6 . ECM-based Alert Blocks 3 | . 3 . Traps | -11 -10 -10 ------- Run | Yrd Mat Sub Traps Triggered 1 | . 1 . Indirectly . | . . . Trap Hack Attempts . | . . . Triggered . | . . . Disarmed . | . . . Reprogrammed . | . . . Reused . | . . . Traps Extracted . | . . . Installed . | . . . Triggered . | . . . Machines | -11 -10 -10 ---------- Run | Yrd Mat Sub Machines Disabled . | . . . Max in Single Turn . | . . . Machines Repaired . | . . . Machines Dismantled . | . . . Machines Sabotaged . | . . . Overloaded Fab Kills . | . . . Hacking | -11 -10 -10 --------- Run | Yrd Mat Sub Machines Accessed 10 | . 10 . Terminals 8 | . 8 . Fabricators . | . . . Repair Stations . | . . . Recycling Units 2 | . 2 . Scanalyzers . | . . . Garrison Access . | . . . Total Hacks 39 | . 39 . Successful 25 | . 25 . Failed 14 | . 14 . Catastrophic 2 | . 2 . Database Lockouts . | . . . Manual 30 | . 30 . Terminals 34 | . 34 . Fabricators . | . . . Repair Stations . | . . . Recycling Units 5 | . 5 . Scanalyzers . | . . . Garrison Access . | . . . Terminal Hacks 6 | . 6 . Robot Analysis 3 | . 3 . Prototype ID Bank 1 | . 1 . Terminal Index 1 | . 1 . Zone Layout 1 | . 1 . Fabricator Hacks . | . . . Repair Station Hacks . | . . . Recycling Unit Hacks 1 | . 1 . Retrieve Components 1 | . 1 . Scanalyzer . | . . . Garrison Access Hacks . | . . . Unauthorized Hacks 18 | . 18 . Terminals 16 | . 16 . Track 2 | . 2 . Assimilate 2 | . 2 . Botnet 4 | . 4 . Disrupt 2 | . 2 . Operators 1 | . 1 . Skim 5 | . 5 . Fabricators . | . . . Repair Stations . | . . . Recycling Units 2 | . 2 . Tunnel 2 | . 2 . Scanalyzers . | . . . Garrison Access . | . . . Data Cores Recovered . | . . . Used . | . . . Hacking Detections 9 | . 9 . Full Trace Events . | . . . Feedback Events . | . . . Feedback Blocked . | . . . Robot Schematics Acquired . | . . . Robots Built . | . . . Authchips . | . . . Time . | . . . Total Robot Build Rating . | . . . Part Schematics Acquired . | . . . Parts Built . | . . . Authchips . | . . . Time . | . . . Total Part Build Rating . | . . . Part Studies Acquired . | . . . Parts Repaired . | . . . Time . | . . . Parts Recycled . | . . . Recycled Matter . | . . . Retrieved Matter . | . . . Retrieved Components 10 | . 10 . Parts Scanalyzed . | . . . Part Schematics Acquired . | . . . Parts Damaged . | . . . Bothacking | -11 -10 -10 ------------ Run | Yrd Mat Sub Used RIF Installer . | . . . Robots Hacked . | . . . Non-combat . | . . . Combat . | . . . Robot Hacks Applied . | . . . Relay Couplers Released . | . . . Fabnet Peak Effective % . | . . . Robots Rewired . | . . . Allies Hacked . | . . . Hacks Repelled . | . . . Allies | -11 -10 -10 -------- Run | Yrd Mat Sub Total Allies 1 | . 1 . Largest Group 1 | . 1 . Highest-Rated Group 10 | . 10 . Highest-Rated Ally 10 | . 10 . Total Orders . | . . . Ally Attacks . | . . . Total Damage . | . . . Kills . | . . . Allies Corrupted . | . . . Allies Melted . | . . . Intel | -11 -10 -10 ------- Run | Yrd Mat Sub Active Infowar (turns) 651 | 22 549 80 Structural 146 | . 66 80 Seismic 479 | 22 457 . ECM 26 | . 26 . Robot Analysis Total 3 | . 3 . Derelict Logs Recovered . | . . . Drone Launches . | . . . Drone Recoveries . | . . . Exploration | -11 -10 -10 ------------- Run | Yrd Mat Sub Turns Passed 973 | 56 837 80 Spaces Moved 1115 | 44 1056 15 Core 3 | 2 . 1 Treads . | . . . Legs . | . . . Wheels 540 | 42 484 14 Hover . | . . . Flight 572 | . 572 . Fastest Speed 37 | 50 37 80 Average Speed 57 | 78 56 81 Slowest Speed 100 | 80 80 100 Overloaded Moves . | . . . Propulsion Burnouts . | . . . Robots Hopped 9 | . 9 . Potential Cave-ins . | . . . Cave-ins Triggered . | . . . Exploration Rate (%) 34 | 3 98 3 Regions Visited 2 Branch Regions 1 Pre-discovered Areas 3 | . 3 . Known Exits Taken . | . . . Unknown Exits Taken 2 | 1 1 . Scrap Searched . | . . . Spaces Dug 1 | . 1 . Terrain Destroyed 1 | . 1 . Melee . | . . . Projectile 1 | . 1 . AOE . | . . . Terrain Rammed . | . . . Walls Destroyed . | . . . Machines Disabled . | . . . Actions | -11 -10 -10 --------- Run | Yrd Mat Sub Total 1284 | 56 1178 50 Wait 45 | . 39 6 Move 1095 | 43 1037 15 Hop 9 | . 9 . Pick Up 15 | 4 11 . Fast Attach 12 | 5 7 . Attach 3 | 1 1 1 Detach . | . . . Swap 3 | . 2 1 Drop 7 | . 7 . Fire 94 | 3 64 27 Melee . | . . . Ram . | . . . Kick . | . . . Crush 1 | . 1 . Escape Stasis . | . . . Rewire . | . . . Trap . | . . . Miscellaneous . | . . . Route ------- -11/Scrapyard -10/Materials (discovered 5 exits: [*Mat x3] / [*Min] / [*Sub]) -10/Subcaves History --------- Turn | Location | Event 19 | -11/Scrapyard | Discovered new exit (range 15) 57 | -11/Scrapyard | Entered Materials 169 | -10/Materials | Discovered new exit (range 7) 204 | -10/Materials | Discovered new exit (range 9) 300 | -10/Materials | Build established: Mutant 497 | -10/Materials | Discovered new exit (range 16) 528 | -10/Materials | Released all parts (5) 590 | -10/Materials | Loaded intel: 16 trap records 626 | -10/Materials | Learned Storage stockpile data 626 | -10/Materials | Discovered new exit (range 3) 653 | -10/Materials | Learned location of Mines (-10) 674 | -10/Materials | Discovered new exit (range 12) 675 | -10/Materials | Learned Storage garrison access intel 720 | -10/Materials | Learned 2 Storage zone layouts 894 | -10/Materials | Entered Subcaves 895 | -10/Subcaves | Approached by a straggling Scientist 928 | -10/Subcaves | Core integrity fell below 50% 961 | -10/Subcaves | Core integrity fell below 20% 974 | -10/Subcaves | Destroyed by TU-E6T(R) with Subdweller Machine Gun Last Messages --------------- 00922_ VS-RBV(R) knocked back. 00928_ Wheel destroyed. 00928_ VS-RBV(R) knocked back. 00929_ Subatomizers dissect the Disposable Heat Sink. 00934_ Critical hit (Destroy). 00934_ Lgt. Cannon destroyed. 00943_ Lgt. Treads destroyed. 00944_ Subatomizers dissect the Disposable Heat Sink. 1J-JFR(c): "I think it's somewhere northeast of here" 00945_ VS-RBV(R) destroyed. 00950_ Lgt. Cannon destroyed. 00954_ Subatomizers dissect the Disposable Heat Sink. 00963_ TU-E6T(R) affixes Scrap Shield Fragment to Scrap Shield. 00966_ Subatomizers dissect the Disposable Heat Sink. Map ----- +----------------------------------------------------+ | ?????????????????????????????????????????????????? | | ?????????????????????????????????????????????????? | | ?????????????????????????????????????????????????? | | ?????????????????????????????????????????????????? | | ?????????????????????????????????????????????????? | | ?????????????????????????????????????????????????? | | ?????????????????????????????????????????????????? | | ?????????????????????????????????????????????????? | | ?????????????????????????????????????????????????? | | ?????????????????????????????????????????????????? | | ?????????????????####????????????????????????????? | | ??????????????###### ????????????????????????????? | | ??????????????##### ??????#########?????????????? | | ?????????# ??## ?????##########?????????????? | | ???????? ## ?## ?????## # #?????????????? | | ???????? ### ???? ?????# ????????????????? | | ???????? # # ???? ###??? ?????????????????? | | ???????? #### ###### ##?????????????????? | | ????????" #### ##### ###?????????????????? | | ?????????## ## # # #######?????????????? | | ?????????### ####### ???????????? | | ?????????### ## ### ???????????? | | ??????##### # # # " ???????????? | | ??????## ##%#%% """ ?????????????? | | ??????# ### !R! %"""""??????????????? | | ???????? ???###### c @##% """ ?????????????? | | ??????????????#### ### ### """" ????????????? | | ???????????????? ### ####" " ""???????????? | | ??????????????? ??## ####?## " "????????????? | | ????????????? ???#######?##### ?????????????? | | ???????????? ??? #????##### ?????????????? | | ?????????? ## ????????????????????????????????? | | ?????????? ### # ????????????????????????????????? | | ?????????? ####??????????????????????????????????? | | ?????????????????????????????????????????????????? | | ?????????????????????????????????????????????????? | | ?????????????????????????????????????????????????? | | ?????????????????????????????????????????????????? | | ?????????????????????????????????????????????????? | | ?????????????????????????????????????????????????? | | ?????????????????????????????????????????????????? | | ?????????????????????????????????????????????????? | | ?????????????????????????????????????????????????? | | ?????????????????????????????????????????????????? | | ?????????????????????????????????????????????????? | | ?????????????????????????????????????????????????? | | ?????????????????????????????????????????????????? | | ?????????????????????????????????????????????????? | | ?????????????????????????????????????????????????? | | ?????????????????????????????????????????????????? | +----------------------------------------------------+ Best States ------------- Heat Dissipation 25 Energy Generation 5 Energy Capacity 100 Matter Stores 300 Matter Capacity 300 Sight Range 16 Terrain Scan Density 10 ECM Strength 1 Evasion (%) 62 Item Schematics ----------------- None Robot Schematics ------------------ None Fabricated ------------ Nothing Repaired ---------- Nothing Studied --------- None Alien Tech Used ----------------- None Achievements -------------- None Challenges ------------ None Game ------ Seed KineticHeatWheel Manual? 0 Play Time 00:15:42 Cumulative 592.6 hours Start 2025.11.02 @ 09:54:07 End 2025.11.02 @ 10:09:07 Sessions 1 Manual Loads 0 Difficulty Rogue Special Mode None Game No. 248 Rogue 248 Adventurer 0 Explorer 0 Win Type - Total 43 Types 19/3/6/2/6/1/0/3/0/3 Lore% 96 Gallery% 88 Achievement% 71 Wizard Run 0 Options --------- Layout 1 ASCII 0 Keyboard 0 Movement Numpad Keybinds 0 Fullscreen 1 Font 24/Smallcaps Map View 50x35 Zoom Use 0% Tactical HUD 1 Map Filters NONE Filters NONE Steam 1 RUN: d461c048-756b-4c60-a7cf-20c031c30620